fUSD/lending_fUSD_20250221
["ID","MTS","AMOUNT","RATE_DAILY","PERIOD"]
[353894311,1740117038220,-3410.7325,0.00013324,2]
[353894312,1740117038230,-1173.42039797,0.00013324,2]
[353894313,1740117038241,-42692.33627575,0.00013324,2]
[353894314,1740117038269,-784.500026,0.00013324,2]
[353894315,1740117038282,-1079.34910173,0.00013324,2]
[353894316,1740117038340,-4293.81319855,0.00013324,2]
[353894317,1740117038349,-1000.0,0.00013324,2]
[353894318,1740117038361,-9052.85634317,0.00013324,2]
[353894319,1740117038399,-69282.24328282,0.00013324,2]
[353894320,1740117038408,-5000.0,0.00013324,2]
[353894321,1740117038418,-55555.0,0.00013324,2]
[353894322,1740117038428,-1367.60741969,0.00013327,2]
[353894323,1740117038437,-150.3725237,0.00013379,2]
[353894324,1740117038447,-11283.93,0.0001339,2]
[353894325,1740117038457,-200.0,0.00013416,2]
[353894327,1740117038466,-158.585107,0.00013424,2]
[353894329,1740117038476,-209.32783889,0.00013424,2]
[353894331,1740117038485,-500.0,0.00013424,2]
[353894333,1740117038494,-500.0,0.00013424,2]
[353894335,1740117038503,-500.0,0.00013424,2]
[353894337,1740117038512,-520.29996645,0.00013424,2]
[353894339,1740117038522,-500.0,0.00013424,2]
[353894341,1740117038535,-500.0,0.00013424,2]
[353894343,1740117038544,-500.0,0.00013424,2]
[353894345,1740117038554,-500.0,0.00013424,2]
[353894347,1740117038564,-500.0,0.00013424,2]
[353894349,1740117038574,-500.0,0.00013424,2]
[353894351,1740117038583,-500.0,0.00013424,2]
[353894353,1740117038593,-500.0,0.00013424,2]
[353894355,1740117038602,-500.0,0.00013424,2]
[353894357,1740117038613,-500.0,0.00013424,2]
[353894359,1740117038623,-500.0,0.00013424,2]
[353894361,1740117038632,-503.0241867,0.00013424,2]
[353894363,1740117038641,-504.04101261,0.00013424,2]
[353894365,1740117038650,-500.0,0.00013424,2]
[353894367,1740117038658,-500.0,0.00013424,2]
[353894369,1740117038668,-500.0,0.00013424,2]
[353894371,1740117038678,-502.87682866,0.00013424,2]
[353894373,1740117038687,-503.5136093,0.00013424,2]
[353894375,1740117038697,-500.0,0.00013424,2]
[353894377,1740117038707,-500.0,0.00013424,2]
[353894379,1740117038716,-472.74541338,0.00013424,2]
[353894529,1740117040231,-464.86247294,0.00012093,2]
[353894562,1740117040524,-383.65251831,0.00012093,2]
[353894570,1740117040596,-261.48500875,0.00012093,2]
[353894572,1740117040605,-27.25458662,0.00013424,2]
[353894574,1740117040615,-500.0,0.00013424,2]
[353894576,1740117040624,-263.34103883,0.00013424,2]
[353894578,1740117040637,-236.65896117,0.00013424,2]
[353894580,1740117040647,-500.0,0.00013424,2]
[353894582,1740117040655,-248.33103883,0.00013424,2]
[353894586,1740117040684,-4019.19706233,0.00013224,2]
[353894589,1740117040695,-435.00996,0.00013224,2]
[353894855,1740117043195,-339.80994533,0.00013224,2]
[353894857,1740117043205,-251.66896117,0.00013424,2]
[353894859,1740117043214,-28.3410815,0.00013424,2]
[353894861,1740117043225,-451.88977681,0.00013424,2]
[353894865,1740117043252,-144.81914169,0.00013424,2]
[353894867,1740117043261,-158.86446978,0.00013424,2]
[353894869,1740117043272,-341.13553022,0.00013424,2]
[353894871,1740117043281,-500.0,0.00013424,2]
[353894873,1740117043290,-500.0,0.00013424,2]
[353894875,1740117043299,-611.83,0.00013424,2]
[353894877,1740117043308,-500.0,0.00013424,2]
[353894879,1740117043317,-500.0,0.00013424,2]
[353894881,1740117043326,-500.0,0.00013424,2]
[353894883,1740117043335,-500.0,0.00013424,2]
[353894885,1740117043344,-500.0,0.00013424,2]
[353894887,1740117043354,-500.0,0.00013424,2]
[353894889,1740117043363,-500.0,0.00013424,2]
[353894891,1740117043372,-500.0,0.00013424,2]
[353894893,1740117043381,-500.0,0.00013424,2]
[353894895,1740117043390,-500.0,0.00013424,2]
[353894897,1740117043399,-500.0,0.00013424,2]
[353894899,1740117043409,-500.0,0.00013424,2]
[353894901,1740117043418,-500.0,0.00013424,2]
[353894903,1740117043427,-512.67277432,0.00013424,2]
[353894905,1740117043436,-500.0,0.00013424,2]
[353894907,1740117043446,-142.04169545,0.00013424,2]
[353894910,1740117043459,-269.38492813,0.00013424,2]
[353894912,1740117043470,-88.57337642,0.00013424,2]
[353894914,1740117043479,-500.0,0.00013424,2]
[353894916,1740117043488,-24.81444282,0.00013424,2]
[353894918,1740117043500,-475.18555718,0.00013424,2]
[353894920,1740117043509,-500.0,0.00013424,2]
[353894922,1740117043519,-8.03835535,0.00013424,2]
[353894924,1740117043535,-491.96164465,0.00013424,2]
[353894926,1740117043545,-500.0,0.00013424,2]
[353894928,1740117043554,-473.38695581,0.00013424,2]
[353894931,1740117043570,-26.61304419,0.00013424,2]
[353894933,1740117043579,-500.0,0.00013424,2]
[353894935,1740117043591,-500.0,0.00013424,2]
[353894937,1740117043601,-243.38725581,0.00013424,2]
[353894940,1740117043619,-256.61274419,0.00013424,2]
[353894942,1740117043628,-291.23725581,0.00013424,2]
[353895231,1740117046406,-4794.01696757,0.00013265,2]
[353895234,1740117046416,-208.76274419,0.00013424,2]
[353895236,1740117046425,-500.0,0.00013424,2]
[353895238,1740117046434,-500.0,0.00013424,2]
[353895240,1740117046443,-500.0,0.00013424,2]
[353895242,1740117046452,-505.95058796,0.00013424,2]
[353895244,1740117046463,-500.0,0.00013424,2]
[353895246,1740117046474,-504.48393407,0.00013424,2]
[353895248,1740117046483,-500.0,0.00013424,2]
[353895250,1740117046492,-500.0,0.00013424,2]
[353895252,1740117046501,-500.0,0.00013424,2]
[353895253,1740117046511,-500.0,0.00013424,2]
[353895255,1740117046520,-500.0,0.00013424,2]
[353895257,1740117046533,-500.0,0.00013424,2]
[353895259,1740117046542,-500.0,0.00013424,2]
[353895262,1740117046552,-500.0,0.00013424,2]
[353895264,1740117046562,-576.75,0.00013424,2]
[353895266,1740117046571,-500.0,0.00013424,2]
[353895267,1740117046580,-500.0,0.00013424,2]
[353895270,1740117046590,-500.0,0.00013424,2]
[353895272,1740117046599,-500.0,0.00013424,2]
[353895273,1740117046608,-500.0,0.00013424,2]
[353895275,1740117046617,-500.0,0.00013424,2]
[353895277,1740117046626,-500.0,0.00013424,2]
[353895279,1740117046635,-525.09,0.00013424,2]
[353895281,1740117046644,-500.0,0.00013424,2]
[353895283,1740117046652,-500.0,0.00013424,2]
[353895285,1740117046661,-500.0,0.00013424,2]
[353895287,1740117046670,-500.0,0.00013424,2]
[353895289,1740117046679,-440.19099306,0.00013424,2]
[353895291,1740117046688,-500.0,0.00013424,2]
[353895293,1740117046699,-500.0,0.00013424,2]
[353895295,1740117046710,-500.0,0.00013424,2]
[353895297,1740117046719,-500.0,0.00013424,2]
[353895299,1740117046728,-522.95,0.00013424,2]
[353895301,1740117046737,-500.0,0.00013424,2]
[353895303,1740117046746,-502.07826405,0.00013424,2]
[353895305,1740117046755,-500.0,0.00013424,2]
[353895307,1740117046764,-500.0,0.00013424,2]
[353895309,1740117046773,-500.0,0.00013424,2]
[353895311,1740117046782,-500.0,0.00013424,2]
[353895313,1740117046791,-500.0,0.00013424,2]
[353895315,1740117046800,-500.0,0.00013424,2]
[353895317,1740117046809,-500.0,0.00013424,2]
[353895319,1740117046818,-500.0,0.00013424,2]
[353895321,1740117046827,-500.0,0.00013424,2]
[353895323,1740117046836,-500.0,0.00013424,2]
[353895325,1740117046845,-500.0,0.00013424,2]
[353895327,1740117046854,-500.0,0.00013424,2]
[353895329,1740117046863,-500.0,0.00013424,2]
[353895331,1740117046872,-500.0,0.00013424,2]
[353895333,1740117046882,-500.45213885,0.00013424,2]
[353895335,1740117046891,-500.0,0.00013424,2]
[353895337,1740117046900,-500.0,0.00013424,2]
[353895340,1740117046910,-500.0,0.00013424,2]
[353895342,1740117046918,-500.0,0.00013424,2]
[353895344,1740117046928,-526.54785013,0.00013424,2]
[353895345,1740117046937,-239.19110389,0.00013424,2]
[353895347,1740117046947,-500.0,0.00013424,2]
[353895350,1740117046956,-500.0,0.00013424,2]
[353895351,1740117046965,-500.0,0.00013424,2]
[353895353,1740117046974,-500.0,0.00013424,2]
[353895355,1740117046986,-500.0,0.00013424,2]
[353895357,1740117046995,-500.0,0.00013424,2]
[353895359,1740117047004,-601.28,0.00013424,2]
[353895361,1740117047013,-500.0,0.00013424,2]
[353895363,1740117047023,-500.0,0.00013424,2]
[353895365,1740117047032,-500.0,0.00013424,2]
[353895367,1740117047041,-500.0,0.00013424,2]
[353895369,1740117047050,-500.0,0.00013424,2]
[353895371,1740117047059,-500.0,0.00013424,2]
[353895373,1740117047068,-500.0,0.00013424,2]
[353895375,1740117047077,-500.0,0.00013424,2]
[353895377,1740117047086,-500.0,0.00013424,2]
[353895379,1740117047095,-500.0,0.00013424,2]
[353895381,1740117047108,-500.0,0.00013424,2]
[353895383,1740117047117,-500.95095155,0.00013424,2]
[353895385,1740117047126,-191.65264936,0.00013424,2]
[353895387,1740117047135,-500.0,0.00013424,2]
[353895389,1740117047144,-508.50401373,0.00013424,2]
[353895391,1740117047155,-500.0,0.00013424,2]
[353895393,1740117047164,-500.0,0.00013424,2]
[353895395,1740117047172,-309.57899887,0.00013424,2]
[353895397,1740117047181,-500.0,0.00013424,2]
[353895399,1740117047190,-500.0,0.00013424,2]
[353895400,1740117047199,-500.0,0.00013424,2]
[353895401,1740117047208,-500.0,0.00013424,2]
[353895402,1740117047217,-500.0,0.00013424,2]
[353895403,1740117047226,-500.0,0.00013424,2]
[353895404,1740117047234,-500.0,0.00013424,2]
[353895405,1740117047243,-500.0,0.00013424,2]
[353895406,1740117047253,-500.0,0.00013424,2]
[353895407,1740117047262,-500.0,0.00013424,2]
[353895408,1740117047271,-500.0,0.00013424,2]
[353895409,1740117047279,-500.0,0.00013424,2]
[353895411,1740117047288,-500.0,0.00013424,2]
[353895413,1740117047297,-500.0,0.00013424,2]
[353895415,1740117047306,-500.0,0.00013424,2]
[353895417,1740117047315,-500.0,0.00013424,2]
[353895419,1740117047324,-500.0,0.00013424,2]
[353895421,1740117047333,-265.19674258,0.00013424,2]
[353895423,1740117047341,-500.0,0.00013424,2]
[353895425,1740117047350,-500.0,0.00013424,2]
[353895427,1740117047359,-500.0,0.00013424,2]
[353895429,1740117047368,-500.0,0.00013424,2]
[353895431,1740117047377,-500.0,0.00013424,2]
[353895433,1740117047386,-500.0,0.00013424,2]
[353895435,1740117047395,-500.0,0.00013424,2]
[353895437,1740117047404,-500.0,0.00013424,2]
[353895438,1740117047415,-500.0,0.00013424,2]
[353895440,1740117047424,-500.0,0.00013424,2]
[353895442,1740117047433,-500.0,0.00013424,2]
[353895444,1740117047442,-500.0,0.00013424,2]
[353895446,1740117047452,-500.0,0.00013424,2]
[353895448,1740117047460,-500.0,0.00013424,2]
[353895450,1740117047469,-500.0,0.00013424,2]
[353895452,1740117047478,-500.0,0.00013424,2]
[353895454,1740117047487,-500.0,0.00013424,2]
[353895456,1740117047496,-500.0,0.00013424,2]
[353895458,1740117047505,-500.0,0.00013424,2]
[353895460,1740117047514,-500.0,0.00013424,2]
[353895462,1740117047523,-500.0,0.00013424,2]
[353895464,1740117047536,-500.0,0.00013424,2]
[353895466,1740117047545,-500.0,0.00013424,2]
[353895468,1740117047554,-502.80873237,0.00013424,2]
[353895470,1740117047563,-500.0,0.00013424,2]
[353895472,1740117047572,-500.0,0.00013424,2]
[353895474,1740117047581,-500.0,0.00013424,2]
[353895476,1740117047590,-500.0,0.00013424,2]
[353895478,1740117047599,-500.0,0.00013424,2]
[353895480,1740117047608,-500.0,0.00013424,2]
[353895482,1740117047617,-500.0,0.00013424,2]
[353895484,1740117047626,-500.0,0.00013424,2]
[353895486,1740117047635,-500.0,0.00013424,2]
[353895488,1740117047644,-500.0,0.00013424,2]
[353895490,1740117047654,-500.0,0.00013424,2]
[353895492,1740117047663,-500.0,0.00013424,2]
[353895494,1740117047672,-465.70562393,0.00013424,2]
[353895496,1740117047681,-500.0,0.00013424,2]
[353895498,1740117047690,-500.0,0.00013424,2]
[353895500,1740117047699,-500.0,0.00013424,2]
[353895502,1740117047709,-644.54305717,0.00013424,2]
[353895504,1740117047718,-500.0,0.00013424,2]
[353895506,1740117047727,-500.0,0.00013424,2]
[353895508,1740117047737,-450.60610099,0.00013424,2]
[353895510,1740117047746,-380.92226794,0.00013424,2]
[353895512,1740117047755,-500.0,0.00013424,2]
[353895514,1740117047764,-501.88237833,0.00013424,2]
[353895516,1740117047773,-500.0,0.00013424,2]
[353895518,1740117047782,-500.0,0.00013424,2]
[353895520,1740117047790,-500.0,0.00013424,2]
[353895522,1740117047799,-500.0,0.00013424,2]
[353895524,1740117047808,-500.0,0.00013424,2]
[353895526,1740117047817,-500.0,0.00013424,2]
[353895528,1740117047826,-443.80526103,0.00013424,2]
[353895530,1740117047835,-500.0,0.00013424,2]
[353895532,1740117047844,-500.0,0.00013424,2]
[353895534,1740117047853,-500.0,0.00013424,2]
[353895536,1740117047861,-507.84672872,0.00013424,2]
[353895538,1740117047870,-500.0,0.00013424,2]
[353895540,1740117047879,-500.0,0.00013424,2]
[353895542,1740117047889,-500.0,0.00013424,2]
[353895544,1740117047898,-500.0,0.00013424,2]
[353895546,1740117047906,-500.0,0.00013424,2]
[353895548,1740117047915,-445.54,0.00013424,2]
[353895550,1740117047924,-352.1949844,0.00013424,2]
[353895552,1740117047933,-500.0,0.00013424,2]
[353895554,1740117047942,-500.0,0.00013424,2]
[353895556,1740117047951,-500.0,0.00013424,2]
[353895557,1740117047960,-500.0,0.00013424,2]
[353895559,1740117047969,-500.0,0.00013424,2]
[353895561,1740117047978,-500.0,0.00013424,2]
[353895563,1740117047987,-500.0,0.00013424,2]
[353895565,1740117047996,-247.65,0.00013424,2]
[353895567,1740117048005,-179.57,0.00013424,2]
[353895569,1740117048014,-500.0,0.00013424,7]
[353895571,1740117048022,-503.2347226,0.00013424,2]
[353895573,1740117048031,-500.0,0.00013424,2]
[353895575,1740117048041,-255.12,0.00013424,2]
[353895577,1740117048050,-500.0,0.00013424,2]
[353895579,1740117048059,-500.0,0.00013424,2]
[353895581,1740117048068,-500.0,0.00013424,2]
[353895583,1740117048077,-500.0,0.00013424,2]
[353895585,1740117048087,-500.0,0.00013424,2]
[353895587,1740117048096,-500.0,0.00013424,2]
[353895589,1740117048106,-500.0,0.00013424,2]
[353895591,1740117048115,-500.0,0.00013424,2]
[353895593,1740117048124,-503.28762498,0.00013424,2]
[353895595,1740117048133,-500.0,0.00013424,2]
[353895597,1740117048143,-507.85495027,0.00013424,2]
[353895599,1740117048152,-175.07,0.00013424,2]
[353895601,1740117048164,-500.0,0.00013424,2]
[353895603,1740117048173,-528.53120721,0.00013424,2]
[353895605,1740117048183,-500.0,0.00013424,2]
[353895607,1740117048194,-515.34780741,0.00013424,2]
[353895609,1740117048203,-500.0,0.00013424,2]
[353895611,1740117048212,-298.57,0.00013424,2]
[353895613,1740117048221,-500.0,0.00013424,2]
[353895615,1740117048230,-500.0,0.00013424,2]
[353895617,1740117048239,-541.15,0.00013424,2]
[353895619,1740117048248,-505.24188806,0.00013424,2]
[353895621,1740117048257,-500.0,0.00013424,2]
[353895623,1740117048266,-500.0,0.00013424,2]
[353895625,1740117048274,-500.0,0.00013424,2]
[353895627,1740117048283,-474.24762632,0.00013424,2]
[353895629,1740117048293,-500.0,0.00013424,2]
[353895631,1740117048302,-235.92,0.00013424,2]
[353895633,1740117048311,-500.0,0.00013424,2]
[353895635,1740117048320,-520.35585985,0.00013424,2]
[353895637,1740117048329,-500.0,0.00013424,2]
[353895639,1740117048338,-500.0,0.00013424,2]
[353895641,1740117048347,-500.0,0.00013424,2]
[353895643,1740117048356,-518.6579664,0.00013424,2]
[353895645,1740117048365,-500.0,0.00013424,2]
[353895647,1740117048375,-500.0,0.00013424,2]
[353895649,1740117048383,-500.0,0.00013424,2]
[353895651,1740117048392,-500.0,0.00013424,2]
[353895653,1740117048402,-500.0,0.00013424,2]
[353895655,1740117048411,-500.0,0.00013424,2]
[353895657,1740117048420,-500.0,0.00013424,2]
[353895659,1740117048429,-500.0,0.00013424,2]
[353895661,1740117048438,-185.77,0.00013424,2]
[353895663,1740117048447,-500.0,0.00013424,2]
[353895665,1740117048456,-500.0,0.00013424,2]
[353895667,1740117048465,-500.0,0.00013424,2]
[353895668,1740117048475,-500.0,0.00013424,2]
[353895670,1740117048484,-584.33795811,0.00013424,2]
[353895672,1740117048493,-500.0,0.00013424,2]
[353895674,1740117048502,-500.0,0.00013424,2]
[353895676,1740117048511,-500.0,0.00013424,2]
[353895678,1740117048520,-500.0,0.00013424,2]
[353895680,1740117048531,-500.0,0.00013424,2]
[353895683,1740117048541,-500.0,0.00013424,2]
[353895684,1740117048551,-153.19,0.00013424,2]
[353895686,1740117048560,-287.47,0.00013424,2]
[353895688,1740117048570,-500.0,0.00013424,2]
[353895690,1740117048579,-500.0,0.00013424,2]
[353895692,1740117048589,-500.0,0.00013424,2]
[353895694,1740117048599,-506.21752733,0.00013424,2]
[353895697,1740117048609,-500.0,0.00013424,2]
[353895698,1740117048619,-558.63132441,0.00013424,2]
[353895700,1740117048628,-256.53,0.00013424,2]
[353895702,1740117048637,-500.0,0.00013424,2]
[353895704,1740117048646,-500.0,0.00013424,2]
[353895706,1740117048655,-500.0,0.00013424,2]
[353895708,1740117048664,-229.55,0.00013424,2]
[353895710,1740117048673,-488.59159345,0.00013424,2]
[353895712,1740117048682,-516.2834768,0.00013424,2]
[353895714,1740117048691,-500.0,0.00013424,2]
[353895716,1740117048701,-502.23156616,0.00013424,2]
[353895718,1740117048709,-500.0,0.00013424,2]
[353895720,1740117048719,-501.72577133,0.00013424,2]
[353895722,1740117048728,-161.72,0.00013424,2]
[353895724,1740117048737,-500.0,0.00013424,2]
[353895726,1740117048746,-527.66,0.00013424,2]
[353895728,1740117048755,-500.0,0.00013424,2]
[353895730,1740117048764,-526.23547224,0.00013424,2]
[353895732,1740117048773,-500.0,0.00013424,2]
[353895734,1740117048782,-500.0,0.00013424,2]
[353895736,1740117048791,-244.99,0.00013424,2]
[353895738,1740117048802,-499.99714719,0.00013424,2]
[353895740,1740117048811,-504.12942422,0.00013424,2]
[353895742,1740117048820,-501.80993804,0.00013424,2]
[353895744,1740117048829,-523.89838786,0.00013424,2]
[353895746,1740117048839,-519.78604868,0.00013424,2]
[353895748,1740117048848,-511.69719808,0.00013424,2]
[353895750,1740117048857,-502.21249437,0.00013424,2]
[353895752,1740117048867,-500.0,0.00013424,2]
[353895754,1740117048876,-501.90648951,0.00013424,2]
[353895756,1740117048885,-500.0,0.00013424,2]
[353895758,1740117048894,-500.0,0.00013424,2]
[353895760,1740117048904,-502.86085126,0.00013424,2]
[353895762,1740117048913,-502.72757821,0.00013424,2]
[353895764,1740117048922,-525.42086977,0.00013424,2]
[353895766,1740117048931,-500.0,0.00013424,2]
[353895768,1740117048939,-195.21,0.00013424,2]
[353895770,1740117048949,-500.0,0.00013424,2]
[353895772,1740117048958,-323.84,0.00013424,2]
[353895774,1740117048967,-183.81,0.00013424,2]
[353895776,1740117048976,-455.71033037,0.00013424,2]
[353895778,1740117048985,-500.0,0.00013424,2]
[353895780,1740117048995,-500.0,0.00013424,2]
[353895783,1740117049004,-534.10102341,0.00013424,2]
[353895784,1740117049014,-644.44370747,0.00013424,2]
[353895786,1740117049023,-507.97726936,0.00013424,2]
[353895789,1740117049033,-500.0,0.00013424,2]
[353895790,1740117049043,-500.0,0.00013424,2]
[353895793,1740117049052,-502.5804252,0.00013424,2]
[353895794,1740117049061,-509.29411663,0.00013424,2]
[353895796,1740117049071,-500.0,0.00013424,2]
[353895798,1740117049080,-500.0,0.00013424,2]
[353895800,1740117049089,-500.0,0.00013424,2]
[353895802,1740117049098,-500.0,0.00013424,2]
[353895805,1740117049110,-500.0,0.00013424,2]
[353895807,1740117049120,-180.96,0.00013424,2]
[353895809,1740117049130,-500.0,0.00013424,2]
[353895811,1740117049139,-500.0,0.00013424,2]
[353895813,1740117049148,-500.0,0.00013424,2]
[353895815,1740117049157,-500.0,0.00013424,2]
[353895817,1740117049166,-500.0,0.00013424,2]
[353895819,1740117049175,-500.0,0.00013424,2]
[353895836,1740117049340,-500.0,0.00013424,2]
[353895837,1740117049351,-500.0,0.00013424,2]
[353895838,1740117049360,-500.0,0.00013424,2]
[353895839,1740117049370,-415.69888126,0.00013424,2]
[353895840,1740117049379,-500.0,0.00013424,2]
[353895841,1740117049389,-501.37958675,0.00013424,2]
[353895842,1740117049398,-576.80605357,0.00013424,2]
[353895843,1740117049407,-507.39411361,0.00013424,2]
[353895844,1740117049417,-500.0,0.00013424,2]
[353895845,1740117049426,-500.0,0.00013424,2]
[353895846,1740117049435,-500.0,0.00013424,2]
[353895847,1740117049444,-500.0,0.00013424,2]
[353895848,1740117049453,-500.0,0.00013424,2]
[353895849,1740117049462,-500.0,0.00013424,2]
[353895850,1740117049471,-500.0,0.00013424,2]
[353895851,1740117049480,-500.0,0.00013424,2]
[353895852,1740117049489,-500.0,0.00013424,2]
[353895853,1740117049498,-500.7494899,0.00013424,2]
[353895854,1740117049507,-500.0,0.00013424,2]
[353895855,1740117049516,-500.0,0.00013424,2]
[353895856,1740117049525,-500.0,0.00013424,2]
[353895857,1740117049538,-500.0,0.00013424,2]
[353895858,1740117049547,-251.87,0.00013424,2]
[353895859,1740117049557,-500.0,0.00013424,2]
[353895860,1740117049566,-500.0,0.00013424,2]
[353895862,1740117049575,-500.0,0.00013424,2]
[353895863,1740117049583,-500.0,0.00013424,2]
[353895865,1740117049592,-503.57427539,0.00013424,2]
[353895867,1740117049602,-500.0,0.00013424,2]
[353895869,1740117049610,-500.0,0.00013424,2]
[353895871,1740117049620,-503.86764245,0.00013424,2]
[353895872,1740117049629,-500.0,0.00013424,2]
[353895873,1740117049638,-500.0,0.00013424,2]
[353895874,1740117049647,-500.82451072,0.00013424,2]
[353895875,1740117049656,-150.0,0.00013424,2]
[353895876,1740117049665,-500.0,0.00013424,2]
[353895877,1740117049673,-500.0,0.00013424,2]
[353895878,1740117049682,-500.72510523,0.00013424,2]
[353895879,1740117049691,-335.44,0.00013424,2]
[353895880,1740117049700,-500.0,0.00013424,2]
[353895881,1740117049709,-500.0,0.00013424,2]
[353895882,1740117049718,-500.0,0.00013424,2]
[353895883,1740117049726,-500.41015727,0.00013424,2]
[353895884,1740117049735,-500.0,0.00013424,2]
[353895885,1740117049744,-539.9825103,0.00013424,2]
[353895886,1740117049753,-500.0,0.00013424,2]
[353895887,1740117049762,-500.0,0.00013424,2]
[353895888,1740117049771,-500.0,0.00013424,2]
[353895889,1740117049781,-500.0,0.00013424,2]
[353895890,1740117049791,-125.32009215,0.00013424,2]
[353895891,1740117049849,-374.67990785,0.00013424,2]
[353895892,1740117049859,-500.0,0.00013424,2]
[353895893,1740117049869,-500.0,0.00013424,2]
[353895894,1740117049878,-500.0,0.00013424,2]
[353895895,1740117049887,-501.04639968,0.00013424,2]
[353895896,1740117049896,-500.0,0.00013424,2]
[353895897,1740117049905,-616.25498234,0.00013424,2]
[353895898,1740117049914,-500.0,0.00013424,2]
[353895899,1740117049923,-500.0,0.00013424,2]
[353895900,1740117049931,-500.0,0.00013424,2]
[353895901,1740117049941,-500.0,0.00013424,2]
[353895902,1740117049950,-500.0,0.00013424,2]
[353895903,1740117049959,-500.0,0.00013424,2]
[353895904,1740117049967,-506.46882757,0.00013424,2]
[353895905,1740117049977,-500.0,0.00013424,2]
[353895906,1740117049986,-500.0,0.00013424,2]
[353895907,1740117049995,-500.0,0.00013424,2]
[353895908,1740117050004,-503.36563939,0.00013424,2]
[353895909,1740117050014,-500.0,0.00013424,2]
[353895910,1740117050023,-500.0,0.00013424,2]
[353895911,1740117050032,-500.0,0.00013424,2]
[353895912,1740117050042,-500.0,0.00013424,2]
[353895913,1740117050052,-500.0,0.00013424,2]
[353895914,1740117050061,-500.0,0.00013424,2]
[353895915,1740117050070,-188.49389716,0.00013424,2]
[353895916,1740117050083,-311.50610284,0.00013424,2]
[353895917,1740117050091,-310.6502656,0.00013424,2]
[353895918,1740117050130,-189.3497344,0.00013424,2]
[353895919,1740117050139,-81.4252656,0.00013424,2]
[353895920,1740117050150,-281.0,0.00013424,2]
[353895921,1740117050161,-137.5747344,0.00013424,2]
[353895922,1740117050170,-231.73833395,0.00013424,2]
[353895923,1740117050182,-268.26166605,0.00013424,2]
[353895924,1740117050191,-500.0,0.00013424,2]
[353895925,1740117050200,-500.0,0.00013424,2]
[353895926,1740117050208,-123.26197881,0.00013424,2]
[353895927,1740117050220,-376.73802119,0.00013424,2]
[353895928,1740117050229,-500.0,0.00013424,2]
[353895929,1740117050238,-500.0,0.00013424,2]
[353895930,1740117050247,-500.0,0.00013424,2]
[353895931,1740117050256,-500.0,0.00013424,2]
[353895932,1740117050265,-500.0,0.00013424,2]
[353895933,1740117050274,-500.0,0.00013424,2]
[353895934,1740117050283,-1379.56552383,0.00013424,2]
[353895935,1740117050294,-942.00447617,0.00013424,2]
[353895936,1740117050303,-500.0,0.00013424,2]
[353895937,1740117050312,-500.0,0.00013424,2]
[353895938,1740117050321,-500.0,0.00013424,2]
[353895939,1740117050330,-500.0,0.00013424,2]
[353895940,1740117050339,-500.0,0.00013424,2]
[353895941,1740117050348,-500.0,0.00013424,2]
[353895942,1740117050357,-103.83392383,0.00013424,2]
[353895943,1740117050368,-272.96570976,0.00013424,2]
[353895944,1740117050379,-126.13752935,0.00013424,2]